bitfinex/quotes_BTCUSD_20251226
["timestamp","ask_amount","ask_price","bid_price","bid_amount"]
[1766764381180,0.01156,87084.0,87068.0,0.01156]
[1766764381388,0.07274,87082.0,87068.0,0.011477]
[1766764381594,0.07274,87079.0,87051.0,0.0863801]
[1766764381746,0.07274,87078.0,87056.0,0.01148685]
[1766764383168,0.07274,87078.0,87054.0,0.01148712]
[1766764383404,0.07274,87078.0,87052.0,0.0397269]
[1766764383595,0.07274,87078.0,87053.0,0.01148725]
[1766764383795,0.01148356,87081.0,87054.0,0.01148712]
[1766764383796,0.07274,87076.0,87054.0,0.01148712]
[1766764383995,0.07274,87076.0,87055.0,0.02409906]
[1766764384400,0.01156,87077.0,87055.0,0.03558605]
[1766764384607,0.01156,87078.0,87059.0,0.05743228]
[1766764384815,0.01156,87079.0,87063.0,0.01148593]
[1766764384990,0.01156,87080.0,87062.0,0.01148606]
[1766764385201,0.01156,87080.0,87060.0,0.02304633]
[1766764385423,0.01156,87080.0,87061.0,0.04235609]
[1766764388802,0.01156,87080.0,87061.0,0.05384228]
[1766764389099,0.01156,87080.0,87061.0,0.04235609]
[1766764389442,0.01156,87080.0,87061.0,0.05384228]
[1766764389640,0.07274,87085.0,87067.0,0.0114854]
[1766764389843,0.01020258,87084.0,87072.0,0.12852659]
[1766764390196,0.02470891,87089.0,87068.0,0.04050034]
[1766764390374,0.0843,87093.0,87072.0,0.12852659]
[1766764390899,0.07274,87093.0,87072.0,0.12852659]
[1766764391486,0.05555329,87097.0,87079.0,0.01148382]
[1766764391693,0.07274,87102.0,87072.0,0.12852659]
[1766764391694,0.02470891,87101.0,87080.0,0.01156]
[1766764391940,0.08422105,87100.0,87080.0,0.01156]
[1766764392245,0.07274,87098.0,87080.0,0.01156]
[1766764392375,0.07274,87098.0,87050.0,0.7108047]
[1766764392376,0.07274,87091.0,87062.0,0.01148606]
[1766764392587,0.08422303,87085.0,87063.0,0.02670991]
[1766764392791,0.07274,87085.0,87063.0,0.02670991]
[1766764393733,0.07274,87078.0,87063.0,0.01156]
[1766764394482,0.07313,87073.0,87063.0,0.01156]
[1766764394733,0.07313,87073.0,87048.0,0.01148791]
[1766764394935,0.07313,87073.0,87050.0,0.01148765]
[1766764395384,0.07313,87073.0,87049.0,0.02304778]
[1766764395555,0.07313,87073.0,87050.0,0.0254975]
[1766764396118,0.07313,87073.0,87052.0,0.01148738]
[1766764396315,0.07313,87073.0,87052.0,0.06892421]
[1766764396506,0.07313,87073.0,87058.0,0.12852659]
[1766764396717,0.07313,87073.0,87059.0,0.01156]
[1766764396914,0.072581,87073.0,87059.0,0.03590695]
[1766764400852,0.01156,87081.0,87059.0,0.03590695]
[1766764401074,0.07313,87080.0,87059.0,0.03590695]
[1766764401243,0.07313,87075.0,87059.0,0.01156]
[1766764401456,0.07313,87075.0,87060.0,0.01156]
[1766764402312,0.07313,87075.0,87061.0,0.12852659]
[1766764402536,0.07313,87075.0,87060.0,0.01156]
[1766764402739,0.07313,87075.0,87060.0,0.02764907]
[1766764402937,0.07313,87075.0,87060.0,0.01156]
[1766764403328,0.08461435,87075.0,87060.0,0.01156]
[1766764403531,0.07313,87075.0,87060.0,0.01156]
[1766764404371,0.024781,87078.0,87064.0,0.12852659]
[1766764404575,0.07313,87084.0,87078.0,0.00055]
[1766764404780,0.07313,87084.0,87073.0,0.01156]
[1766764406069,0.07313,87094.0,87073.0,0.01156]
[1766764406407,0.07313,87094.0,87073.0,0.02304461]
[1766764406783,0.07313,87094.0,87074.0,0.01148448]
[1766764407389,0.01156,87097.0,87078.0,0.12852659]
[1766764407607,2.36e-06,87099.0,87078.0,0.12863418]
[1766764408024,0.07313,87098.0,87078.0,0.12863418]
[1766764408202,0.07313,87098.0,87078.0,0.00010759]
[1766764408775,0.07313,87098.0,87078.0,0.01159154]
[1766764409069,0.07313,87098.0,87079.0,0.02115033]
[1766764409316,0.07313,87098.0,87080.0,0.01156]
[1766764409771,0.01148158,87096.0,87080.0,0.01156]
[1766764410016,0.01148158,87096.0,87079.0,0.02115033]
[1766764410017,0.07313,87079.0,87069.0,0.01156]
[1766764410261,0.07323753,87079.0,87069.0,0.01156]
[1766764410863,0.00010753,87079.0,87069.0,0.01156]
[1766764411236,0.07313,87087.0,87079.0,0.000107]
[1766764411443,0.068581,87087.0,87079.0,0.000107]
[1766764411641,0.068581,87087.0,87069.0,0.01156]
[1766764411845,0.068581,87087.0,87070.0,0.00919604]
[1766764412054,0.068581,87087.0,87069.0,0.01166753]
[1766764412681,0.07313,87088.0,87069.0,0.01166753]
[1766764415292,0.07313,87088.0,87070.0,0.01156]
[1766764415645,0.07313,87088.0,87074.0,0.01148448]
[1766764415843,0.01156,87096.0,87088.0,0.00055]
[1766764416410,0.01156,87096.0,87081.0,0.01156]
[1766764416542,0.08469,87096.0,87081.0,0.01156]
[1766764416909,0.07313,87094.0,87080.0,0.01156]
[1766764417110,0.07313,87092.0,87080.0,0.01156]
[1766764417729,0.07313,87092.0,87080.0,0.011011]
[1766764417930,0.0574097,87094.0,87062.0,0.01148606]
[1766764417931,0.07313,87089.0,87076.0,0.01156]
[1766764418168,0.0846125,87089.0,87064.0,0.04596]
[1766764418318,0.07313,87085.0,87069.0,0.01166753]
[1766764418928,0.07313,87082.0,87069.0,0.01166753]
[1766764419295,0.01148395,87078.0,87069.0,0.00010753]
[1766764419490,0.01148395,87078.0,87044.0,0.12852659]
[1766764419491,0.07313,87075.0,87049.0,0.04596]
[1766764419694,0.0847219,87075.0,87050.0,0.03705034]
[1766764419907,0.07323755,87075.0,87050.0,0.03705034]
[1766764420095,0.07323755,87075.0,87051.0,0.01148751]
[1766764420373,0.07323755,87075.0,87052.0,0.05743693]
[1766764420645,0.07323755,87075.0,87052.0,0.01148738]
[1766764420961,0.07323755,87075.0,87053.0,0.05080573]
[1766764421200,0.07323755,87075.0,87058.0,0.12852659]
[1766764421395,0.07213855,87075.0,87059.0,0.02304646]
[1766764421600,0.07213855,87075.0,87059.0,0.01156]
[1766764421947,0.07213855,87075.0,87060.0,0.01156]
[1766764422295,0.07213855,87075.0,87061.0,0.01034554]
[1766764422440,0.07213855,87075.0,87060.0,0.01156]
[1766764423083,0.0247949,87081.0,87062.0,0.05742977]
[1766764423283,0.07313,87087.0,87064.0,0.0114858]
[1766764423482,0.01076108,87086.0,87066.0,0.01148553]
[1766764423682,0.01076108,87085.0,87067.0,0.02435667]
[1766764423888,0.01076108,87084.0,87067.0,0.02435667]
[1766764424098,0.07313,87087.0,87067.0,0.02435667]
[1766764424341,0.08438075,87086.0,87068.0,0.22970551]
[1766764424536,0.0247949,87092.0,87068.0,0.22970551]
[1766764424537,0.0247949,87091.0,87072.0,0.01148474]
[1766764424740,0.01076029,87090.0,87073.0,0.01852219]
[1766764424987,0.01076029,87089.0,87073.0,0.01852219]
[1766764425166,0.07362,87095.0,87073.0,0.01852219]
[1766764425370,0.01075992,87094.0,87073.0,0.01852219]
[1766764425684,0.01075992,87093.0,87073.0,0.01852219]
[1766764425886,0.01075992,87092.0,87074.0,0.01348348]
[1766764426434,0.01075992,87092.0,87070.0,0.01148501]
[1766764426681,0.01075992,87092.0,87071.0,0.01148488]
[1766764426860,0.01075992,87092.0,87070.0,0.01148501]
[1766764427060,0.01075992,87092.0,87072.0,0.01148474]
[1766764427598,0.01075992,87092.0,87071.0,0.01148488]
[1766764427809,0.01075992,87092.0,87072.0,0.01392821]
[1766764428021,0.07362,87091.0,87072.0,0.01392821]
[1766764428221,0.07362,87091.0,87072.0,0.02541295]
[1766764428922,0.07362,87091.0,87073.0,0.01148461]
[1766764429349,0.07362,87091.0,87072.0,0.02541295]
[1766764429527,0.07362,87091.0,87073.0,0.02106363]
[1766764430567,0.07362,87091.0,87069.0,0.01156]
[1766764430932,0.07362,87091.0,87068.0,0.01148527]
[1766764431125,0.07362,87091.0,87069.0,0.02304514]
[1766764431531,0.07362,87091.0,87071.0,0.01148488]
[1766764431730,0.07362,87091.0,87072.0,0.06890836]
[1766764431935,0.07362,87091.0,87073.0,0.01148461]
[1766764432275,0.08518,87095.0,87070.0,0.6648447]
[1766764432417,0.08438208,87094.0,87069.0,0.01156]
[1766764432655,0.07362,87089.0,87070.0,0.01156]
[1766764432863,0.07362,87089.0,87071.0,0.01156]
[1766764433214,0.07362,87089.0,87072.0,0.01156]
[1766764433942,0.07362,87091.0,87072.0,0.01156]
[1766764434483,0.01076425,87090.0,87072.0,0.01156]
[1766764434698,0.07362,87091.0,87072.0,0.01156]
[1766764435414,0.01076425,87090.0,87072.0,0.01156]
[1766764435638,0.07362,87091.0,87072.0,0.01156]
[1766764435841,0.08438424,87090.0,87072.0,0.0299439]
[1766764436042,0.01076437,87089.0,87072.0,0.01156]
[1766764436245,0.07362,87085.0,87064.0,0.01182]
[1766764436450,0.07362,87073.0,87055.0,0.01156]
[1766764436624,0.07362,87073.0,87056.0,0.01148685]
[1766764436625,0.07372755,87073.0,87056.0,0.01148685]
[1766764436845,0.07372755,87073.0,87057.0,0.0057952]
[1766764437042,0.07362,87082.0,87059.0,0.01182]
[1766764437289,0.01076536,87081.0,87061.0,0.01148619]
[1766764437607,0.01076536,87080.0,87062.0,0.01148606]
[1766764437746,0.07362,87082.0,87063.0,0.01156]
[1766764437927,0.0107646,87081.0,87064.0,0.04276819]
[1766764438126,0.07362,87082.0,87064.0,0.03128239]
[1766764438525,0.07362,87082.0,87064.0,0.04276819]
[1766764438823,0.01156,87090.0,87071.0,0.01148488]
[1766764439001,0.01148211,87092.0,87073.0,0.01182]
[1766764439352,0.01148211,87092.0,87072.0,0.14008659]
[1766764439353,0.07362,87092.0,87074.0,0.01519066]
[1766764440864,0.000549,87074.0,87054.0,0.01148712]
[1766764441019,0.08510369,87080.0,87060.0,0.01156]
[1766764441219,0.07362,87080.0,87060.0,0.01156]
[1766764441425,0.01156,87085.0,87060.0,0.01156]
[1766764441426,0.01148435,87075.0,87061.0,0.00806017]
[1766764441626,0.00055,87061.0,87060.0,0.01156]
[1766764442368,0.07362,87066.0,87057.0,0.05055685]
[1766764442610,0.07372753,87066.0,87057.0,0.05055685]
[1766764442814,0.07372753,87066.0,87057.0,0.05000785]
[1766764443164,0.07372753,87066.0,87053.0,0.00025233]
[1766764443165,0.07362,87062.0,87053.0,0.00025233]
[1766764443368,0.07362,87062.0,87053.0,3.3e-07]
[1766764444726,0.06890777,87073.0,87053.0,3.3e-07]
[1766764444727,0.01156,87069.0,87053.0,3.3e-07]
[1766764444926,0.01156,87069.0,87053.0,0.00010786]
[1766764445342,0.01148448,87074.0,87053.0,0.00010786]
[1766764445343,0.07362,87079.0,87069.0,0.000251]
[1766764445546,0.01156,87078.0,87069.0,0.000251]
[1766764445758,0.46501908,87090.0,87062.0,0.01156]
[1766764445961,0.09839426,87089.0,87069.0,0.01148514]
[1766764446074,0.09839426,87089.0,87068.0,0.01148527]
[1766764446075,0.07362,87089.0,87070.0,0.04548813]
[1766764446276,0.01156,87096.0,87071.0,0.08523]
[1766764446507,0.01156,87096.0,87074.0,0.07367]
[1766764447325,0.02477426,87099.0,87096.0,0.000801]
[1766764447661,0.08518,87108.0,87096.0,0.000801]
[1766764447892,0.08518,87108.0,87089.0,0.01156]
[1766764448258,0.09666,87108.0,87089.0,0.01156]
[1766764448455,0.08528761,87108.0,87089.0,0.01156]
[1766764449999,0.41296028,87110.0,87089.0,0.01156]
[1766764450140,0.41296028,87110.0,87089.0,0.01166761]
[1766764450347,0.0851,87108.0,87089.0,0.01166761]
[1766764450547,0.01148079,87102.0,87089.0,0.01136961]
[1766764450858,0.45345908,87100.0,87089.0,0.01136961]
[1766764451427,0.01148092,87101.0,87085.0,0.01156]
[1766764451547,0.00010751,87101.0,87085.0,0.01156]
[1766764452581,0.01158843,87101.0,87085.0,0.01156]
[1766764452902,0.01148118,87099.0,87085.0,0.01156]
[1766764453105,0.55167267,87100.0,87072.0,0.07367]
[1766764453106,0.0114829,87086.0,87072.0,0.07367]
[1766764453321,0.01148277,87087.0,87030.0,0.21117414]
[1766764453322,0.01148342,87082.0,87062.0,0.07367]
[1766764453518,0.01156,87085.0,87063.0,0.023523]
[1766764453721,0.01156,87085.0,87067.0,0.07367]
[1766764454895,0.01156,87088.0,87067.0,0.07367]
[1766764455542,0.02304263,87088.0,87067.0,0.07367]
[1766764455788,0.01156,87088.0,87067.0,0.07367]
[1766764455915,0.01156,87088.0,87068.0,0.01890817]
[1766764456735,0.02304263,87088.0,87068.0,0.01890817]
[1766764456937,0.01148277,87087.0,87068.0,0.01890817]
[1766764457377,0.01156,87088.0,87068.0,0.01890817]
[1766764458350,0.01156,87088.0,87068.0,0.08669817]
[1766764458759,0.01156,87088.0,87068.0,0.06779]
[1766764458951,0.02304263,87088.0,87068.0,0.06779]
[1766764459171,0.0688977,87086.0,87068.0,0.06779]
[1766764459373,0.01148303,87085.0,87068.0,0.06779]
[1766764459601,0.01148277,87087.0,87068.0,0.06779]
[1766764460014,0.01148316,87084.0,87068.0,0.06779]
[1766764460216,0.0114829,87086.0,87068.0,0.06779]
[1766764460448,0.01148277,87087.0,87068.0,0.06779]
[1766764460660,0.01156,87088.0,87068.0,0.06779]
[1766764460882,0.0114829,87086.0,87068.0,0.06779]
[1766764461080,0.242498,87080.0,87063.0,0.01156]
[1766764461289,0.45345908,87080.0,87063.0,0.01156]
[1766764462034,0.01148369,87080.0,87063.0,0.01156]
[1766764462236,0.01148356,87081.0,87063.0,0.01156]
[1766764462852,0.01148382,87079.0,87064.0,0.01156]
[1766764463057,0.01148369,87080.0,87064.0,0.01156]
[1766764463446,0.07377,87082.0,87064.0,0.01156]
[1766764463780,0.07377,87082.0,87065.0,0.00908366]
[1766764464384,0.01156,87088.0,87065.0,0.07687366]
[1766764464799,0.02304263,87088.0,87065.0,0.07687366]
[1766764464987,0.01156,87088.0,87065.0,0.07687366]
[1766764465181,0.01074474,87087.0,87065.0,0.07687366]
[1766764465404,0.0852529,87086.0,87067.0,0.06779]
[1766764465807,0.07377,87086.0,87067.0,0.06779]
[1766764466934,0.0852529,87086.0,87067.0,0.06779]
[1766764467335,0.07377,87086.0,87067.0,0.06779]
[1766764467540,0.01156,87088.0,87067.0,0.06779]
[1766764467760,0.01156,87088.0,87067.0,0.12796256]
[1766764467964,0.07594589,87088.0,87067.0,0.12796256]
[1766764468170,0.01156,87088.0,87067.0,0.12796256]
[1766764468512,0.01156,87088.0,87067.0,0.06779]
[1766764469401,0.0114829,87086.0,87067.0,0.06779]
[1766764469604,0.01148303,87085.0,87067.0,0.06779]
[1766764470153,0.01148277,87087.0,87067.0,0.06779]
[1766764470616,0.08533,87088.0,87067.0,0.06779]
[1766764471362,0.11008935,87088.0,87067.0,0.06779]
[1766764471487,0.16273765,87088.0,87067.0,0.06779]
[1766764471693,0.05741504,87086.0,87067.0,0.06779]
[1766764471897,0.0362419,87087.0,87067.0,0.06779]
[1766764472102,0.08533,87088.0,87067.0,0.06779]
[1766764472103,0.12157176,87088.0,87067.0,0.06779]
[1766764472311,0.06815969,87087.0,87067.0,0.06779]
[1766764472528,0.08525303,87085.0,87067.0,0.06779]
[1766764472939,0.01148316,87084.0,87067.0,0.06779]
[1766764473139,0.08525303,87085.0,87067.0,0.06779]
[1766764473478,0.01148316,87084.0,87067.0,0.06779]
[1766764473684,0.07377,87085.0,87067.0,0.06779]
[1766764475725,0.08525303,87085.0,87067.0,0.06779]
[1766764476520,0.01148316,87084.0,87067.0,0.06779]
[1766764476719,0.03329874,87083.0,87067.0,0.06779]
[1766764477442,0.01148316,87084.0,87067.0,0.06779]
[1766764478075,0.08525303,87085.0,87067.0,0.06779]
[1766764478291,0.09855208,87085.0,87067.0,0.06779]
[1766764478506,0.07377,87085.0,87067.0,0.06779]
[1766764478709,0.08525303,87085.0,87067.0,0.06779]
[1766764479283,0.02478208,87086.0,87068.0,0.007935]
[1766764479544,0.07377,87091.0,87071.0,0.06779]
[1766764479857,0.01075507,87090.0,87072.0,0.01156]
[1766764480086,0.45312218,87090.0,87073.0,0.01156]
[1766764480260,0.01075873,87089.0,87073.0,0.01156]
[1766764480472,0.45312218,87090.0,87073.0,0.01156]
[1766764481085,0.0114825,87089.0,87073.0,0.01156]
[1766764481295,0.01148329,87083.0,87072.0,0.06779]
[1766764481505,0.00055,87072.0,87055.0,0.06779]
[1766764481675,0.45312218,87083.0,87053.0,0.04596033]
[1766764481676,0.45312218,87070.0,87056.0,0.01156]
[1766764482816,0.45312218,87070.0,87056.0,0.01166753]
[1766764483015,0.45312218,87070.0,87057.0,0.05900277]
[1766764484184,0.08525435,87075.0,87057.0,0.05900277]
[1766764484387,0.01077257,87074.0,87056.0,0.01166753]
[1766764484658,0.07377,87075.0,87056.0,0.01166753]
[1766764484871,0.01077259,87074.0,87056.0,0.01166753]
[1766764485022,0.07377,87075.0,87056.0,0.01166753]
[1766764485221,0.01077165,87074.0,87056.0,0.01166753]
[1766764485444,0.01077165,87073.0,87056.0,0.01166753]
[1766764485646,0.07377,87075.0,87056.0,0.01166753]
[1766764485811,0.01077172,87074.0,87056.0,0.07965753]
[1766764486013,0.01077172,87073.0,87056.0,0.07965753]
[1766764486239,0.07377,87075.0,87056.0,0.07965753]
[1766764486515,0.01077072,87074.0,87056.0,0.07965753]
[1766764486842,0.45332775,87070.0,87056.0,0.07965753]
[1766764487041,0.45332775,87070.0,87056.0,0.09221932]
[1766764487985,0.45332775,87070.0,87056.0,0.01166753]
[1766764488186,0.07017,87069.0,87056.0,0.01111853]
[1766764488334,0.07017,87067.0,87056.0,0.01111853]
[1766764488537,0.0816554,87067.0,87056.0,0.01111853]
[1766764488731,0.01148553,87066.0,87056.0,0.01111853]
[1766764488937,0.07017,87064.0,87053.0,3.3e-07]
[1766764489139,0.52349775,87063.0,87053.0,3.3e-07]
[1766764489742,0.00010747,87064.0,87053.0,3.3e-07]
[1766764489959,0.01148619,87061.0,87053.0,3.3e-07]
[1766764490166,0.08165606,87062.0,87053.0,3.3e-07]
[1766764490404,0.07017,87062.0,87053.0,3.3e-07]
[1766764490783,0.01148619,87061.0,87053.0,3.3e-07]
[1766764490997,0.08165606,87062.0,87053.0,3.3e-07]
[1766764491598,0.07017,87062.0,87053.0,3.3e-07]
[1766764493229,0.01148619,87061.0,87053.0,3.3e-07]
[1766764493836,0.01148633,87060.0,87053.0,3.3e-07]
[1766764494036,0.01148751,87051.0,87022.0,0.06799]
[1766764494244,0.52349775,87050.0,87026.0,0.06799]
[1766764494442,0.01156,87050.0,87036.0,0.06799]
[1766764495312,0.46488775,87050.0,87036.0,0.06799]
[1766764495829,0.01156,87050.0,87036.0,0.07947949]
[1766764496039,0.09492634,87059.0,87050.0,0.000549]
[1766764496262,0.45332775,87060.0,87050.0,0.000549]
[1766764496465,0.01156,87061.0,87037.0,0.18597307]
[1766764496466,0.01156,87061.0,87045.0,0.07947831]
[1766764496737,0.01156,87061.0,87047.0,0.06799]
[1766764497117,0.00010747,87064.0,87047.0,0.06799]
[1766764498173,0.52223824,87070.0,87047.0,0.06799]
[1766764498174,0.01148422,87076.0,87064.0,0.000107]
[1766764498337,0.01073861,87074.0,87064.0,0.000107]
[1766764498516,0.01148461,87073.0,87057.0,0.01156]
[1766764498702,0.01148474,87072.0,87057.0,0.01156]
[1766764498908,0.01148488,87071.0,87057.0,0.01156]
[1766764499109,0.07017,87073.0,87057.0,0.01156]
[1766764499628,0.08165461,87073.0,87057.0,0.01156]
[1766764499829,0.07017,87073.0,87057.0,0.01156]
[1766764500464,0.07017,87092.0,87073.0,0.000549]
[1766764500667,0.01166759,87092.0,87074.0,0.06799]
[1766764500907,0.00010759,87092.0,87074.0,0.06799]
[1766764501140,0.02474464,87099.0,87072.0,0.01156]
[1766764501141,3.84e-06,87099.0,87089.0,0.06799]
[1766764501343,0.46488775,87110.0,87090.0,0.01950726]
[1766764501483,0.45332775,87110.0,87090.0,0.08749726]
[1766764501688,0.46488775,87110.0,87091.0,0.06799]
[1766764501899,0.01148118,87099.0,87078.0,0.06799]
[1766764502091,0.01148118,87099.0,87079.0,0.018359]
[1766764502092,0.45332775,87090.0,87079.0,0.018359]
[1766764502297,0.01148158,87096.0,87079.0,0.018359]
[1766764502528,0.07017,87098.0,87079.0,0.018359]
[1766764502729,0.07017,87098.0,87079.0,0.086349]
[1766764502958,0.07017,87098.0,87079.0,0.06849026]
[1766764503122,0.07017,87098.0,87079.0,0.08920684]
[1766764504345,0.08165131,87098.0,87079.0,0.00050026]
[1766764504546,0.6645157,87090.0,87078.0,0.00010759]
[1766764504810,4.9e-05,87078.0,87075.0,0.00991493]
[1766764505020,0.01148303,87085.0,87062.0,0.11395]
[1766764505226,0.07017,87084.0,87066.0,0.01156]
[1766764505644,0.07017,87084.0,87067.0,0.00059793]
[1766764505848,0.07017,87084.0,87066.0,0.01156]
[1766764508376,0.6645157,87080.0,87066.0,0.01156]
[1766764508721,0.07017,87082.0,87066.0,0.01156]
[1766764508939,0.00932126,87081.0,87066.0,0.01156]
[1766764509138,0.6645157,87090.0,87067.0,0.0114854]
[1766764509387,0.01156,87089.0,87073.0,0.06799]
[1766764509696,0.00010753,87089.0,87073.0,0.06799]
[1766764511239,0.00010753,87089.0,87076.0,0.06799]
[1766764511441,0.00010753,87089.0,87077.0,0.07947408]
[1766764511638,0.00010753,87089.0,87077.0,0.06799]
[1766764512773,0.07017,87097.0,87077.0,0.06799]
[1766764512981,0.01156,87096.0,87077.0,0.08409188]
[1766764513405,0.6645157,87100.0,87077.0,0.08409188]
[1766764513603,0.06888454,87103.0,87077.0,0.08409188]
[1766764513763,0.01156,87099.0,87077.0,0.08409188]
[1766764514412,0.01156,87099.0,87078.0,0.07184]
[1766764514585,0.01156,87099.0,87081.0,0.0574178]
[1766764514786,0.07017,87108.0,87085.0,0.07184]
[1766764515015,0.07017,87108.0,87087.0,0.07184]
[1766764515016,0.08173,87108.0,87087.0,0.07184]
[1766764515415,0.08173,87108.0,87087.0,0.08332277]
[1766764515639,0.08173,87108.0,87087.0,0.07184]
[1766764515833,0.08173,87108.0,87088.0,0.07184]
[1766764516040,0.08173,87108.0,87088.0,0.08332263]
[1766764516249,0.06887242,87118.0,87093.0,0.07184]
[1766764516250,0.07297,87118.0,87093.0,0.07184]
[1766764516424,0.01156,87114.0,87095.0,0.07184]
[1766764516640,0.01156,87114.0,87095.0,0.08936588]
[1766764517266,0.01156,87114.0,87095.0,0.07184]
[1766764518136,0.02303921,87114.0,87095.0,0.07184]
[1766764518335,0.02303921,87114.0,87094.0,0.01156]
[1766764518336,0.6645157,87110.0,87094.0,0.01156]
[1766764518589,0.000549,87095.0,87094.0,0.01156]
[1766764518906,0.01148079,87102.0,87084.0,0.07184]
[1766764519084,0.00055,87094.0,87086.0,0.01156]
[1766764519238,0.07489665,87101.0,87086.0,0.01156]
[1766764519438,0.01148066,87103.0,87086.0,0.01156]
[1766764519680,0.01148079,87102.0,87086.0,0.01156]
[1766764519984,0.05740396,87102.0,87086.0,0.011011]
[1766764520210,0.07297,87102.0,87086.0,0.011011]
[1766764520404,0.08445092,87101.0,87086.0,0.011011]
[1766764520649,0.07297,87101.0,87086.0,0.011011]
[1766764522913,0.08445092,87101.0,87086.0,0.011011]
[1766764523172,0.07297,87101.0,87086.0,0.011011]
[1766764523354,0.08445092,87101.0,87086.0,0.011011]
[1766764523530,0.01148105,87100.0,87086.0,0.011011]
[1766764524362,0.0978664,87100.0,87086.0,0.011011]
[1766764524563,0.07297,87101.0,87086.0,0.011011]
[1766764524926,0.01148105,87100.0,87086.0,0.011011]
[1766764525126,0.01148118,87099.0,87086.0,0.011011]
[1766764525352,0.01148171,87095.0,87086.0,0.011011]
[1766764525527,0.2295941,87111.0,87052.0,0.01148738]
[1766764525528,0.01148342,87082.0,87052.0,0.01148738]
[1766764525726,0.01148342,87082.0,87057.0,0.07184]
[1766764525727,0.6645157,87070.0,87057.0,0.07184]
[1766764525929,0.7374857,87080.0,87058.0,0.01148659]
[1766764526132,0.7374857,87080.0,87059.0,0.08332646]
[1766764526328,6.997e-05,87082.0,87080.0,0.000549]
[1766764526553,6.997e-05,87082.0,87071.0,0.07184]
[1766764526711,0.6645157,87090.0,87071.0,0.07184]
[1766764526914,0.6645157,87090.0,87073.0,0.07184]
[1766764527319,0.08453,87096.0,87073.0,0.07184]
[1766764527518,0.1001637,87095.0,87073.0,0.07184]
[1766764527783,0.01148184,87094.0,87073.0,0.07184]
[1766764527997,0.08453,87096.0,87073.0,0.07184]
[1766764528142,0.6645157,87090.0,87073.0,0.07184]
[1766764529778,0.01148369,87080.0,87067.0,0.01156]
[1766764529984,0.07297,87081.0,87067.0,0.01156]
[1766764530310,0.01148408,87077.0,87067.0,0.01156]
[1766764530506,0.01148422,87076.0,87067.0,0.01101]
[1766764530779,0.05742477,87071.0,87067.0,0.01101]
[1766764530972,0.01148593,87063.0,87049.0,0.01156]
[1766764531184,0.6645157,87060.0,87049.0,0.01166747]
[1766764531596,0.01156,87073.0,87060.0,0.000549]
[1766764531789,0.07297,87076.0,87057.0,0.07184]
[1766764532014,0.01156,87073.0,87057.0,0.07184]
[1766764532213,0.6645157,87070.0,87049.0,0.08350747]
[1766764532428,0.6645157,87070.0,87049.0,0.10107426]
[1766764533155,0.6645157,87070.0,87049.0,0.11256204]
[1766764533361,0.01156,87073.0,87050.0,0.08332765]
[1766764533615,0.01156,87073.0,87053.0,0.08332725]
[1766764533821,0.02304461,87073.0,87053.0,0.07184]
[1766764534164,0.01148553,87066.0,87049.0,0.01166747]
[1766764534371,0.74897163,87063.0,87049.0,0.01166747]
[1766764534572,0.74897163,87063.0,87045.0,0.07209234]
[1766764534573,0.01148633,87060.0,87045.0,0.00025234]
[1766764534803,0.0813909,87059.0,87045.0,0.00025234]
[1766764535021,0.0730729,87060.0,87045.0,0.00025234]
[1766764535336,0.08455923,87060.0,87045.0,0.00025234]
[1766764535547,0.0730729,87060.0,87045.0,0.00025234]
[1766764536158,0.0001029,87060.0,87045.0,0.00025234]
[1766764536365,0.01156,87061.0,87060.0,0.000102]
[1766764536912,0.01156,87061.0,87046.0,0.07184]
[1766764537116,0.01156,87064.0,87047.0,0.00836523]
[1766764537790,0.01148699,87055.0,87045.0,5.24e-06]
[1766764537989,0.07297,87053.0,87045.0,5.24e-06]
[1766764538818,0.00010755,87055.0,87053.0,0.000549]
[1766764539294,5.5e-07,87055.0,87053.0,0.000549]
[1766764539444,5.5e-07,87055.0,87046.0,0.07184]
[1766764539994,5.5e-07,87055.0,87045.0,0.01156524]
[1766764540839,0.01156,87059.0,87045.0,0.01156524]
[1766764541051,0.01156,87059.0,87045.0,0.01167279]
[1766764541453,0.01156,87059.0,87045.0,0.08351279]
[1766764541654,0.01156,87059.0,87045.0,0.0941619]
[1766764541902,0.01156,87059.0,87046.0,0.07184]
[1766764545435,0.01156,87059.0,87045.0,0.01167279]
[1766764548950,0.01156,87059.0,87045.0,0.08211279]
[1766764551680,0.01156,87061.0,87045.0,0.08211279]
[1766764552452,0.06890826,87073.0,87045.0,0.01167279]
[1766764552653,0.01148488,87071.0,87051.0,0.01293331]
[1766764552906,0.01156,87070.0,87051.0,0.01293331]
[1766764553257,0.02304501,87070.0,87051.0,0.01293331]
[1766764553513,0.01156,87070.0,87051.0,0.01293331]
[1766764554063,0.01148474,87072.0,87051.0,0.01293331]
[1766764554064,0.05751,87073.0,87051.0,0.01293331]
[1766764554268,0.01156,87072.0,87051.0,0.01293331]
[1766764555100,0.03339626,87072.0,87051.0,0.01293331]
[1766764555296,0.01074391,87071.0,87051.0,0.01293331]
[1766764555478,0.03339626,87072.0,87051.0,0.01293331]
[1766764555676,0.01074393,87071.0,87051.0,0.01293331]
[1766764555877,0.03339626,87072.0,87052.0,0.01156]
[1766764556099,0.03723943,87071.0,87052.0,0.01156]
[1766764556302,0.01074561,87070.0,87051.0,0.01293331]
[1766764556472,0.02649548,87071.0,87045.0,0.00011279]
[1766764556473,0.000107,87051.0,87045.0,0.00011279]
[1766764556673,0.06807,87059.0,87045.0,0.00011279]
[1766764556879,0.01156,87063.0,87045.0,0.00011279]
[1766764557225,0.01156,87063.0,87045.0,0.07055279]
[1766764559807,0.01156,87063.0,87050.0,0.6645157]
[1766764560212,0.01156,87063.0,87049.0,0.07044]
[1766764560461,0.01076798,87062.0,87049.0,0.07044]
[1766764560662,0.01156,87063.0,87049.0,0.07044]
[1766764561311,0.01156,87063.0,87050.0,0.6645157]
[1766764561910,0.01156,87063.0,87051.0,0.07044]
[1766764562282,0.01077035,87062.0,87051.0,0.07044]
[1766764562482,0.01156,87063.0,87051.0,0.07044]
[1766764562686,0.01077054,87062.0,87050.0,0.6760757]
[1766764562888,0.01156,87063.0,87050.0,0.6760757]
[1766764563100,1.5,87060.0,87050.0,0.6760757]
[1766764564170,1.499008,87060.0,87051.0,0.07044]
[1766764564384,1.26449111,87060.0,87054.0,0.01148712]
[1766764564693,0.33725009,87060.0,87055.0,0.01148699]